Cogmind - Beta 12 @@@ ROGUE MODE // 2023.09.11 @ 03:02:21 Player: JB_0x0003 Result: Destroyed by 8R-AWN with 8R-AWN's Boregun Performance ------------- Evolutions (0) 0 Regions Visited (3) 600 Robots Destroyed (13) 65 Value Destroyed (258) 258 Prototype IDs (0) 0 Alien Tech Used (0) 0 Bonus (-14) -14 TOTAL SCORE: 909 Bonus ------- Friendly Fire -14 Cogmind --------- Core Integrity 0/250 Matter 300/300 Energy 90/100 System Corruption 7% Temperature Cool (90) Movement Core (50) Location -10/Exiles Parts ------- > --- POWER (1) -------- (None) > --- PROPULSION (2) --- (None) > --- UTILITY (2) ------ (None) > --- WEAPON (2) ------- (None) > --- INVENTORY (5) ---- Light Ion Engine Flight Unit Small Storage Unit Small Laser Assault Rifle Peak State ------------ > --- POWER ------------ Light Ion Engine > --- PROPULSION ------- Compact Wheel Compact Wheel > --- UTILITY ---------- Small Storage Unit Visual Processing Unit > --- WEAPON ----------- Heavy EM Pulse Gun Heavy EM Pulse Gun > --- INVENTORY -------- Aluminum Leg Aluminum Leg Visual Processing Unit Heavy EM Pulse Gun Heavy EM Pulse Gun Small Laser Assault Rifle [Rating: 11] Favorites ----------- Power Light Ion Engine Engine Light Ion Engine Propulsion Compact Wheel Wheel Compact Wheel Utility Visual Processing Unit Storage Huge Storage Unit Processor Visual Processing Unit Weapon Heavy EM Pulse Gun Energy Gun Heavy EM Pulse Gun Ballistic Gun Assault Rifle Build | -11 -10 -10 -10 ------- Run | Jun Mat Min Exi Slots Evolved . | . . . . Power . | . . . . Propulsion . | . . . . Utility . | . . . . Weapon . | . . . . Parts Attached 14 | 6 4 4 . Power 3 | 1 . 2 . Engine 3 | 1 . 2 . Core . | . . . . Reactor . | . . . . Propulsion 2 | 2 . . . Treads . | . . . . Leg . | . . . . Wheel 2 | 2 . . . Hover . | . . . . Flight . | . . . . Utility 3 | 1 2 . . Device . | . . . . Storage 2 | 1 1 . . Processor 1 | . 1 . . Hackware . | . . . . Protection . | . . . . Artifact . | . . . . Weapon 6 | 2 2 2 . Energy Gun 5 | 1 2 2 . Energy Cannon . | . . . . Ballistic Gun 1 | 1 . . . Ballistic Cannon . | . . . . Launcher . | . . . . Special Weapon . | . . . . Impact Weapon . | . . . . Slashing Weapon . | . . . . Piercing Weapon . | . . . . Special Melee Weapon . | . . . . Unidentified Prototypes . | . . . . Parts Lost 9 | . 1 3 5 Power 2 | . . 1 1 Propulsion 2 | . . 1 1 Utility 1 | . . . 1 Weapon 4 | . 1 1 2 Highest Loss Streak 5 | . 1 2 5 To Critical Strikes . | . . . . Average Slot Usage (%) 92 | . 94 93 85 Engine 13 | . 14 13 14 Wheel 23 | . 28 23 14 Storage 14 | . 14 14 14 Processor 13 | . 13 14 14 Energy Gun 25 | . 22 26 28 Naked Turns . | . . . . Heaviest Build 91 | 11 89 91 89 Greatest Support 32 | 32 32 32 16 Greatest Overweight (x) 5 | 2 2 5 5 Average Overweight (x) 2 | . . 2 4 Largest Inventory Capacity 25 | 8 25 25 25 Average Capacity 21 | 7 16 25 25 Most Carried 9 | 2 9 9 8 Average Carried 7 | . 7 7 8 Final Capacity 25 | 8 25 25 5 Final Carried 9 | 2 9 8 5 Class Distribution -------------------- 100% | Mutant Dominant Class ---------------- Mutant | -10/Materials Mutant | -10/Mines Mutant | -10/Exiles Resources | -11 -10 -10 -10 ----------- Run | Jun Mat Min Exi Matter Collected 335 | 205 56 74 . Remotely . | . . . . Salvage Created 342 | . 143 199 . Parts 26 | . 11 15 . Haulers Intercepted . | . . . . Recyclers Shooed . | . . . . Parts Field Recycled . | . . . . Retrieved Matter . | . . . . Parts Self-Destructed . | . . . . Prevented . | . . . . Kills | -11 -10 -10 -10 ------- Run | Jun Mat Min Exi Combat Hostiles Destroyed 12 | . 4 8 . Guns 10 | . 3 7 . AOE 2 | . 1 1 . Classes Destroyed 3 | . 3 . . Watcher 1 | . 1 . . Swarmer 8 | . 2 6 . Grunt 4 | . 2 2 . Best Kill Streak 4 | . 4 3 . Combat Bots Only 4 | . 4 3 . Max Kills in Single Turn 2 | . 2 1 . Gunslinging . | . . . . Exploded 1 | . 1 1 . Melee . | . . . . Uniques/NPCs Destroyed . | . . . . Combat | -11 -10 -10 -10 -------- Run | Jun Mat Min Exi Damage Taken 707 | . 219 258 230 Core 261 | . 106 59 96 Absorbed by Shields . | . . . . Core Remaining (%) 100 | 100 . . . Volleys Fired 28 | . 7 19 2 Largest 2 | . 2 2 2 Hottest 90 | . 90 90 90 Shots Fired 55 | . 14 37 4 Gun 55 | . 14 37 4 Cannon . | . . . . Launcher . | . . . . Special . | . . . . Kinetic . | . . . . Thermal . | . . . . Explosive . | . . . . Electromagnetic 55 | . 14 37 4 Robot Hit Streak 5 | . 5 5 2 Robot Miss Streak 3 | . 2 3 1 Penetration Max . | . . . . Secondary Targets 2 | . 2 . . Max Gunslinging Chain 1 | . 1 . . Shots Hit Robots 31 | . 9 19 3 Core Hits 17 | . 6 10 1 Critical Kills . | . . . . Critical Parts Destroyed . | . . . . Critical Strikes 2 | . 2 . . Corrupt 2 | . 2 . . Melee Attacks . | . . . . Impact . | . . . . Slashing . | . . . . Piercing . | . . . . Sneak Attacks . | . . . . Combat Hostiles . | . . . . Follow-up Attacks . | . . . . Damage Inflicted 528 | . 209 283 36 Guns 434 | . 157 241 36 Cannons . | . . . . Explosions 94 | . 52 42 . Melee . | . . . . Ramming . | . . . . Kinetic . | . . . . Thermal 94 | . 52 42 . Explosive . | . . . . Electromagnetic 434 | . 157 241 36 Impact . | . . . . Slashing . | . . . . Piercing . | . . . . Highest Corruption 7 | . 1 1 7 Average Corruption 1 | . 1 1 1 Corruption Purged . | . . . . Corruption Blocked . | . . . . Effects 7 | . . 7 . Message Errors 2 | . . 2 . Matter Fused 1 | . . 1 . Heat Flow Errors 2 | . . 2 . Energy Discharges 1 | . . 1 . Data Loss (minor) 1 | . . 1 . Overload Shots . | . . . . Overflow Damage . | . . . . Projectiles . | . . . . Explosions . | . . . . Melee . | . . . . Knockbacks . | . . . . Impact . | . . . . Kinetic . | . . . . Secondary . | . . . . Self-Inflicted Damage 40 | . 40 . . Shots 1 | . 1 . . Rammed . | . . . . Targets Rammed . | . . . . Kicked . | . . . . Crushed . | . . . . Highest Temperature 347 | . 195 347 115 Average Temperature 101 | . 76 111 71 Received Heat Transfer 200 | . 78 42 80 Effects 1 | . . 1 . Interference 1 | . . 1 . Siege Activations . | . . . . Robots Corrupted . | . . . . Combat Hostiles . | . . . . Parts Fried 2 | . . 2 . Impact Corruptions . | . . . . Robots Melted . | . . . . Combat Hostiles . | . . . . Parts Melted . | . . . . Heat Transferred 100 | . 50 50 . Parts Sabotaged . | . . . . Parts Stolen . | . . . . Parts Stripped . | . . . . Power Chain Reactions 2 | . 1 1 . Missiles Intercepted . | . . . . Alert | -11 -10 -10 -10 ------- Run | Jun Mat Min Exi Peak Influence 250 | . 154 250 . Initial 60 | . . 60 . Average 96 | . 87 111 . Maximum Alert Level 1 | . . 1 . Low Security (%) 91 | 100 100 86 . Level 1 8 | . . 13 . Level 2 . | . . . . Level 3 . | . . . . Level 4 . | . . . . Level 5 . | . . . . High Security . | . . . . Max Security . | . . . . Squads Dispatched 1 | . 1 . . Investigation . | . . . . Extermination . | . . . . Reinforcement 1 | . 1 . . Assault . | . . . . Garrison . | . . . . Intercept . | . . . . Searches Triggered . | . . . . Construction Impeded . | . . . . Haulers Reinforced . | . . . . Active Scanning Responses . | . . . . Cargo Convoy Interrupts . | . . . . Stealth | -11 -10 -10 -10 --------- Run | Jun Mat Min Exi Distress Signals . | . . . . Communications Jammed . | . . . . Distress Signals . | . . . . Times Spotted 28 | . 10 10 8 Peak Tracking Total 9 | . 4 3 9 Tactical Retreats 2 | . 1 1 . Traps | -11 -10 -10 -10 ------- Run | Jun Mat Min Exi Traps Triggered 1 | . 1 . . Indirectly . | . . . . Trap Hack Attempts . | . . . . Triggered . | . . . . Disarmed . | . . . . Reprogrammed . | . . . . Reused . | . . . . Traps Extracted . | . . . . Installed . | . . . . Triggered . | . . . . Machines | -11 -10 -10 -10 ---------- Run | Jun Mat Min Exi Machines Disabled 1 | . . . 1 Max in Single Turn 1 | . . . 1 Machines Repaired . | . . . . Machines Sabotaged . | . . . . Overloaded Fab Kills . | . . . . Hacking | -11 -10 -10 -10 --------- Run | Jun Mat Min Exi Machines Accessed 1 | . 1 . . Terminals 1 | . 1 . . Fabricators . | . . . . Repair Stations . | . . . . Recycling Units . | . . . . Scanalyzers . | . . . . Garrison Access . | . . . . Total Hacks 1 | . 1 . . Successful 1 | . 1 . . Failed . | . . . . Catastrophic . | . . . . Database Lockouts . | . . . . Manual 1 | . 1 . . Terminals 1 | . 1 . . Fabricators . | . . . . Repair Stations . | . . . . Recycling Units . | . . . . Scanalyzers . | . . . . Garrison Access . | . . . . Terminal Hacks 1 | . 1 . . Terminal Index 1 | . 1 . . Fabricator Hacks . | . . . . Repair Station Hacks . | . . . . Recycling Unit Hacks . | . . . . Scanalyzer . | . . . . Garrison Access Hacks . | . . . . Unauthorized Hacks . | . . . . Terminals . | . . . . Fabricators . | . . . . Repair Stations . | . . . . Recycling Units . | . . . . Scanalyzers . | . . . . Garrison Access . | . . . . Data Cores Recovered . | . . . . Used . | . . . . Hacking Detections . | . . . . Full Trace Events . | . . . . Feedback Events . | . . . . Feedback Blocked . | . . . . Robot Schematics Acquired . | . . . . Robots Built . | . . . . Authchips . | . . . . Time . | . . . . Total Robot Build Rating . | . . . . Part Schematics Acquired . | . . . . Parts Built . | . . . . Authchips . | . . . . Time . | . . . . Total Part Build Rating . | . . . . Parts Repaired . | . . . . Time . | . . . . Parts Recycled . | . . . . Recycled Matter . | . . . . Retrieved Matter . | . . . . Retrieved Components . | . . . . Parts Scanalyzed . | . . . . Part Schematics Acquired . | . . . . Parts Damaged . | . . . . Bothacking | -11 -10 -10 -10 ------------ Run | Jun Mat Min Exi Used RIF Installer . | . . . . Robots Hacked . | . . . . Non-combat . | . . . . Combat . | . . . . Robot Hacks Applied . | . . . . Relay Couplers Released . | . . . . Fabnet Peak Effective % . | . . . . Robots Rewired . | . . . . Allies Hacked . | . . . . Hacks Repelled . | . . . . Allies | -11 -10 -10 -10 -------- Run | Jun Mat Min Exi Total Allies . | . . . . Largest Group . | . . . . Highest-Rated Group . | . . . . Highest-Rated Ally . | . . . . Total Orders . | . . . . Ally Attacks . | . . . . Total Damage . | . . . . Kills . | . . . . Allies Corrupted . | . . . . Allies Melted . | . . . . Intel | -11 -10 -10 -10 ------- Run | Jun Mat Min Exi Robot Analysis Total . | . . . . Derelict Logs Recovered 2 | . . 2 . Drone Launches . | . . . . Drone Recoveries . | . . . . Exploration | -11 -10 -10 -10 ------------- Run | Jun Mat Min Exi Turns Passed 974 | 61 246 566 101 Spaces Moved 619 | 48 182 335 54 Core 6 | 6 . . . Treads . | . . . . Legs . | . . . . Wheels 613 | 42 182 335 54 Hover . | . . . . Flight . | . . . . Fastest Speed 50 | 50 100 130 160 Average Speed 134 | 102 114 143 174 Slowest Speed 175 | 150 130 175 175 Overloaded Moves . | . . . . Propulsion Burnouts . | . . . . Robots Hopped . | . . . . Cave-ins Triggered . | . . . . Exploration Rate (%) 28 | 4 39 51 20 Regions Visited 3 Branch Regions 2 Pre-discovered Areas 1 | . . 1 . Known Exits Taken . | . . . . Unknown Exits Taken 3 | 1 1 1 . Scrap Searched 1 | . . 1 . Spaces Dug . | . . . . Terrain Destroyed 6 | . 6 . . Melee . | . . . . Projectile . | . . . . AOE 6 | . 6 . . Terrain Rammed . | . . . . Walls Destroyed . | . . . . Machines Disabled . | . . . . Actions | -11 -10 -10 -10 --------- Run | Jun Mat Min Exi Total 705 | 57 206 385 57 Wait 28 | . 3 25 . Move 616 | 47 181 334 54 Hop . | . . . . Pick Up 12 | 3 7 2 . Fast Attach 9 | 6 3 . . Attach 3 | . . 3 . Detach 2 | . 2 . . Swap 2 | . 1 1 . Drop 5 | 1 2 1 1 Fire 28 | . 7 19 2 Melee . | . . . . Ram . | . . . . Kick . | . . . . Crush . | . . . . Escape Stasis . | . . . . Rewire . | . . . . Trap . | . . . . Miscellaneous . | . . . . Route ------- -11/Junkyard -10/Materials (discovered 2 exits: [*Mat] / [*Min]) -10/Mines (discovered 3 exits: [*Mat x2] / [*Exi]) -10/Exiles (discovered 1 exit: [*Min]) History --------- Turn | Location | Event 15 | -11/Junkyard | Discovered new exit (range 16) 62 | -11/Junkyard | Entered Materials 131 | -10/Materials | Discovered new exit (range 16) 294 | -10/Materials | Discovered new exit (range 12) 308 | -10/Materials | Entered Mines 310 | -10/Mines | Build established: Mutant 325 | -10/Mines | Learned location of Storage (-7) 361 | -10/Mines | Core integrity fell below 50% 395 | -10/Mines | Learned Materials interactive machine intel 514 | -10/Mines | Discovered new exit (range 9) 578 | -10/Mines | Deemed a non-threat by the Exiles lab entrance 580 | -10/Mines | Discovered new exit (range 5) 620 | -10/Mines | Discovered new exit (range 11) 874 | -10/Mines | Entered Exiles 897 | -10/Exiles | Discovered new exit (range 16) 930 | -10/Exiles | Met 8R-AWN 957 | -10/Exiles | Met EX-HEX 968 | -10/Exiles | Attacked by the Exiles 973 | -10/Exiles | Core integrity fell below 20% 975 | -10/Exiles | Destroyed by 8R-AWN with 8R-AWN's Boregun Last Messages --------------- little cave for long, and we could use some help with the project in the back. 00967_ Machine disabled. 00968_ EXILES: Hostile robot within lab perimeter. Defensive protocols time, folks! 00971_ Hvy. EM Pulse Gun destroyed. 00972_ Penetrated by HV Slug. 00972_ HV Slug penetrates as-00095. 00972_ Machine disabled. 00972_ Penetrated by HV Slug. 00972_ HV Slug penetrates as-00095. 00973_ Visual Processing Unit destroyed. 00973_ Lgt. Ion Engine destroyed. 00973_ System corrupted by crushing effect (+5). 00973_ System corrupted by crushing effect (+1). 00973_ Knocked back. 00973_ Hvy. EM Pulse Gun destroyed. 00974_ Com. Wheel destroyed. 00975_ Dropped Huge Storage Unit. 00975_ Penetrated by HV Slug. Map ----- +----------------------------------------------------+ | ?????????????????????????????????????????????????? | | ?????????????????????????????????????????????????? | | ?????????????????????????????????????????????????? | | ?????????????????????????????????????????????????? | | ?????????????????????????????????????????????????? | | ?????????????????????????????????????????????????? | | ?????????????????????????????????????????????????? | | ?????????????????????????????????????????????????? | | ?????????????????????????????????????????????????? | | ?????????????????????????????????????????????????? | | ?????????????????????????????????????????????????? | | ?????????????????????????????????????????????????? | | ??????????????"" "???????????????????????????????? | | ???????????? "" " ?????????????????????????????? | | ??????????? " ""????????????????????????????? | | ?????????? "a"????????????#####??????????? | | ?????????? " "#??????????##" #??????????? | | ?????????? ""###???????#" #??????????? | | ????????? """#??????##" ##?????????? | | ????????? "#????### ###???????? | | ???????? ##???# ######### | | ????????" ##?## g #""""## | | ????????"" ### | | ???????" ## * | | ????????" c ! #### | | ?????? =@= ""#?#"""""#### | | ?????? #"""##?#######??#### | | ?????? aa ######??????????????## | | ?????? a a ##????????????????????? | | ?????? " a a ##?????????????????????? | | ???????? """ "#??????????????????????? | | ????????? " ""#" a "##??????????????????????? | | ???????????????## """"""##???????????????????????? | | ????????????????#########????????????????????????? | | ?????????????????????????????????????????????????? | | ?????????????????????????????????????????????????? | | ?????????????????????????????????????????????????? | | ?????????????????????????????????????????????????? | | ?????????????????????????????????????????????????? | | ?????????????????????????????????????????????????? | | ?????????????????????????????????????????????????? | | ?????????????????????????????????????????????????? | | ?????????????????????????????????????????????????? | | ?????????????????????????????????????????????????? | | ?????????????????????????????????????????????????? | | ?????????????????????????????????????????????????? | | ?????????????????????????????????????????????????? | | ?????????????????????????????????????????????????? | | ?????????????????????????????????????????????????? | | ?????????????????????????????????????????????????? | +----------------------------------------------------+ Best States ------------- Heat Dissipation 25 Energy Generation 10 Energy Capacity 250 Matter Stores 300 Matter Capacity 300 Sight Range 18 Terrain Scan Density 10 Evasion (%) 40 Item Schematics ----------------- None Robot Schematics ------------------ None Fabricated ------------ Nothing Alien Tech Used ----------------- None Achievements -------------- None Challenges ------------ None Game ------ Seed ReactionSingularitySource Manual? 0 Play Time 00:08:14 Cumulative 18.6 hours Start 2023.09.11 @ 02:55:24 End 2023.09.11 @ 03:02:21 Sessions 1 Manual Loads 0 Difficulty Rogue Special Mode None Game No. 12 Rogue 3 Adventurer 9 Explorer 0 Win Type - Total 1 Types 1/0/0/0/0/0/0/0/0 Lore% 3 Gallery% 29 Achievement% 26 Wizard Run 0 Options --------- ASCII 0 Keyboard 1 Movement Arrows Keybinds 0 Fullscreen 1 Font 18/Terminus Map View 76x50 Tactical HUD 1 Map Filters NONE Filters NONE Steam 1 RUN: b10b9d0b-2efb-4bf3-8ceb-817e4855809b